bitfinex-derivatives/quotes_SOLF0:USTF0_20250523
["timestamp","ask_amount","ask_price","bid_price","bid_amount"]
[1747999495464,0.03589872,184.62,184.59,5.4171]
[1747999495660,0.03589872,184.62,184.58,0.04031394]
[1747999498668,0.03589872,184.62,184.6,5.4169]
[1747999499058,0.03589872,184.62,184.58,0.04031394]
[1747999499866,5.4168,184.61,184.58,5.45781394]
[1747999500071,0.03589872,184.62,184.58,0.04031394]
[1747999500870,0.03589872,184.62,184.61,5.4168]
[1747999506069,1.9427,184.7,184.58,1.96041394]
[1747999506269,1.9427,184.7,184.58,1.9201]
[1747999506469,233.5,184.71,184.58,1.9201]
[1747999506664,1.901,184.75,184.58,1.9201]
[1747999507076,1.901,184.75,184.64,0.03616291]
[1747999507278,1.901,184.75,184.68,5.4145]
[1747999507478,1.901,184.75,184.69,0.03611522]
[1747999507679,1.901,184.75,184.7,0.04056101]
[1747999507878,1.901,184.75,184.71,0.03948597]
[1747999508275,1.5435,184.75,184.71,0.03948597]
[1747999508980,5.4128,184.75,184.72,5.4135]
[1747999509276,175.8685,184.76,184.71,0.03948597]
[1747999509277,1.8685,184.76,184.71,0.03948597]
[1747999509480,177.8969,184.8,184.71,0.03948597]
[1747999509779,174.0,184.79,184.71,0.03948597]
[1747999510378,182.73618672,184.79,184.71,0.03948597]
[1747999510889,5.4136,184.72,184.71,0.03948597]
[1747999511882,5.42,184.72,184.54,323.62]
[1747999512080,12.59418672,184.71,184.54,323.62]
[1747999512780,5.45614708,184.64,184.61,0.03584178]
[1747999512984,5.45130021,184.64,184.61,0.03584178]
[1747999513184,0.03530021,184.64,184.61,0.03584178]
[1747999513476,5.45120021,184.64,184.61,0.03584178]
[1747999513683,0.03530021,184.64,184.61,0.03584178]
[1747999513979,5.4162,184.63,184.61,0.03584178]
[1747999514180,0.03530021,184.64,184.61,0.03584178]
[1747999514574,5.4162,184.63,184.61,0.03584178]
[1747999515181,0.03530021,184.64,184.61,0.03584178]
[1747999517382,0.03530021,184.64,184.63,5.4162]
[1747999518593,0.03530021,184.64,184.62,5.4165]
[1747999518883,0.03530021,184.64,184.61,0.03584178]
[1747999519284,0.03530021,184.64,184.63,5.4162]
[1747999520176,0.03530021,184.64,184.61,0.03584178]
[1747999521875,0.03530021,184.64,184.62,5.4165]
[1747999522179,0.03530021,184.64,184.61,0.03584178]
[1747999522581,0.03530021,184.64,184.63,5.4162]
[1747999522785,0.03530021,184.64,184.61,0.03584178]
[1747999522984,5.4165,184.62,184.61,0.03584178]
[1747999523284,0.03530021,184.64,184.5,5.5551]
[1747999523478,214.64,184.66,184.5,5.5551]
[1747999524075,174.0,184.69,184.56,0.04002561]
[1747999524280,0.0346793,184.64,184.61,0.03939661]
[1747999524680,0.0346793,184.64,184.63,5.416]
[1747999525280,0.0346793,184.64,184.62,5.4165]
[1747999525688,0.0346793,184.64,184.61,0.03939661]
[1747999526489,0.0346793,184.64,184.61,5.45599661]
[1747999526990,0.0346793,184.64,184.61,5.45609661]
[1747999527486,0.0346793,184.64,184.61,0.03939661]
[1747999527693,5.4162,184.63,184.61,0.03939661]
[1747999527992,0.0346793,184.64,184.61,0.03939661]
[1747999528289,0.0346793,184.64,184.61,5.45599661]
[1747999528491,0.0346793,184.64,184.61,0.03939661]
[1747999529891,0.0346793,184.64,184.62,5.4163]
[1747999530191,0.0346793,184.64,184.61,0.03939661]
[1747999530391,0.0346793,184.64,184.62,5.4163]
[1747999530581,0.0346793,184.64,184.61,0.03939661]
[1747999530893,0.0346793,184.64,184.63,5.4162]
[1747999534990,0.0346793,184.64,184.61,0.03939661]
[1747999535543,0.0346793,184.64,184.63,5.4162]
[1747999536994,0.0346793,184.64,184.62,5.4164]
[1747999537196,0.0346793,184.64,184.61,0.03939661]
[1747999537996,0.0346793,184.64,184.63,5.4162]
[1747999538588,0.0346793,184.64,184.61,0.03939661]
[1747999539593,5.4182,184.57,184.54,11.33512031]
[1747999539792,202.14,184.66,184.54,5.91632031]
[1747999540596,0.04048796,184.62,184.58,0.04136643]
[1747999540796,5.4174,184.59,184.58,0.04136643]
[1747999540996,0.04048796,184.62,184.58,0.04136643]
[1747999542890,0.04048796,184.62,184.47,202.18]
[1747999543096,1.9914,184.62,184.47,202.18]
[1747999543297,5.4191,184.54,184.47,202.18]
[1747999543598,202.18,184.59,184.46,1.8981]
[1747999543990,0.03867078,184.54,184.51,0.03629155]
[1747999544502,0.03867078,184.54,184.45,5.91632031]
[1747999544791,5.4198,184.51,184.46,5.4209]
[1747999545000,0.03867078,184.54,184.46,5.4209]
[1747999545197,0.03867078,184.54,184.45,5.91632031]
[1747999545399,5.4197,184.52,184.4,305.14]
[1747999545595,0.03872125,184.48,184.44,0.03582231]
[1747999545797,0.04128342,184.48,184.44,0.03516583]
[1747999545994,8.342e-05,184.48,184.47,5.4209]
[1747999546500,8.342e-05,184.48,184.44,0.03516583]
[1747999546888,8.342e-05,184.48,184.47,5.4209]
[1747999547390,8.342e-05,184.48,184.44,0.03516583]
[1747999547592,8.342e-05,184.48,184.46,5.4212]
[1747999547896,8.342e-05,184.48,184.44,0.03516583]
[1747999548100,8.342e-05,184.48,184.45,5.4214]
[1747999548292,8.342e-05,184.48,184.44,0.03516583]
[1747999549103,8.342e-05,184.48,184.38,5.91632031]
[1747999549307,8.342e-05,184.48,184.33,106.6946]
[1747999549600,1.824,184.5,184.33,106.6946]
[1747999549804,5.4213,184.46,184.41,5.4224]
[1747999550001,0.03434671,184.45,184.42,0.03432157]
[1747999550190,0.03434671,184.45,184.42,0.04061406]
[1747999550389,0.03434671,184.45,184.42,5.46271406]
[1747999550593,0.03434671,184.45,184.42,0.04061406]
[1747999551807,0.03434671,184.45,184.44,5.4218]
[1747999552591,4.671e-05,184.45,184.44,5.4218]
[1747999555202,4.671e-05,184.45,184.44,108.4218]
[1747999558904,4.671e-05,184.45,184.44,5.4218]
[1747999561602,5.42164671,184.45,184.42,0.04061406]
[1747999561999,4.671e-05,184.45,184.42,0.04061406]
[1747999562211,5.42164671,184.45,184.42,0.04061406]
[1747999563197,4.671e-05,184.45,184.42,0.04061406]
[1747999563902,5.42154671,184.45,184.42,0.04061406]
[1747999564101,4.671e-05,184.45,184.42,0.04061406]
[1747999564810,4.671e-05,184.45,184.44,5.4218]
[1747999565803,4.92332693,184.55,184.51,5.4195]
[1747999566110,4.92332693,184.55,184.45,3.9057]
[1747999566310,4.92332693,184.55,184.45,108.4413]
[1747999566512,4.92332693,184.55,184.45,103.02]
[1747999566701,0.03841489,184.52,184.48,0.04027713]
[1747999566905,0.03841489,184.52,184.51,5.4197]
[1747999567204,4.92332693,184.55,184.48,0.04027713]
[1747999567205,4.92332693,184.55,184.48,190.52027713]
[1747999567411,4.92332693,184.55,184.48,194.27177713]
[1747999567613,6.56443591,184.57,184.51,8.73618672]
[1747999568100,3.004e-05,184.56,184.52,0.03753979]
[1747999568300,9.84665387,184.6,184.55,8.73618672]
[1747999568505,6.84695387,184.6,184.56,1.8749]
[1747999568701,6.84695387,184.6,184.59,5.4174]
[1747999568908,190.44,184.7,184.59,103.0]
[1747999569108,5.4159,184.65,184.6,5.4171]
[1747999569315,0.03655316,184.66,184.63,0.03649405]
[1747999569515,0.03655316,184.66,184.63,0.03850573]
[1747999569720,5.45195316,184.66,184.63,0.03850573]
[1747999570014,0.03655316,184.66,184.63,0.03850573]
[1747999570410,5.4159,184.64,184.63,0.03850573]
[1747999570606,0.03655316,184.66,184.63,0.03850573]
[1747999572714,5.4159,184.64,184.63,0.03850573]
[1747999575316,5.4175,184.59,184.55,102.96]
[1747999575515,5.4175,184.59,184.53,8.73618672]
[1747999575714,5.4175,184.59,184.54,102.96]
[1747999576013,190.44,184.7,184.54,102.96]
[1747999576209,0.04108068,184.64,184.6,0.04052469]
[1747999576415,5.4163,184.63,184.6,0.04052469]
[1747999576719,0.04108068,184.64,184.6,0.04052469]
[1747999577918,0.04108068,184.64,184.61,5.4167]
[1747999578121,0.04108068,184.64,184.6,0.04052469]
[1747999578310,0.04108068,184.64,184.6,3.94612469]
[1747999578512,5.4144,184.7,184.6,3.94612469]
[1747999578711,184.5,184.75,184.6,3.94612469]
[1747999578913,184.5,184.75,184.6,3.9056]
[1747999579125,5.4145,184.69,184.64,5.4157]
[1747999579421,5.4145,184.69,184.62,184.5]
[1747999579619,0.0362246,184.67,184.64,5.45360283]
[1747999579824,0.03882281,184.67,184.64,0.03780283]
[1747999580216,0.03882281,184.67,184.65,5.4156]
[1747999580921,0.03882281,184.67,184.66,5.4153]
[1747999581223,1.9043,184.76,184.64,0.03780283]
[1747999581523,1.9043,184.76,184.62,193.23618672]
[1747999582124,0.03908528,184.71,184.67,0.03506867]
[1747999582520,0.03908528,184.71,184.68,102.94]
[1747999582722,0.03908528,184.71,184.7,5.4142]
[1747999585322,0.03908528,184.71,184.7,108.3342]
[1747999585622,0.03908528,184.71,184.7,102.92]
[1747999586324,0.03908528,184.71,184.7,108.3342]
[1747999587224,1.9389,184.81,184.75,5.4125]
[1747999587416,5.4117,184.79,184.75,5.4125]
[1747999587618,1.9389,184.81,184.75,5.4125]
[1747999587916,5.4117,184.79,184.75,5.4125]
[1747999588127,1.9505,184.83,184.75,0.03556109]
[1747999588422,184.4,184.85,184.75,0.03556109]
[1747999588626,5.4109,184.82,184.75,0.03556109]
[1747999588824,5.4109,184.82,184.78,5.4118]
[1747999589023,184.4,184.85,184.75,0.03556109]
[1747999589526,182.73618672,184.84,184.67,102.9]
[1747999589824,174.0,184.83,184.69,5.4144]
[1747999590021,184.8208,184.83,184.67,102.9]
[1747999590226,5.4138,184.72,184.67,102.9]
[1747999590425,5.4138,184.72,184.68,5.4145]
[1747999590626,5.44947353,184.72,184.68,5.45616427]
[1747999590927,0.03567353,184.72,184.68,0.04166427]
[1747999591723,5.4141,184.71,184.68,0.04166427]
[1747999592125,0.03567353,184.72,184.68,0.04166427]
[1747999593529,0.03567353,184.72,184.69,5.4142]
[1747999593933,0.03567353,184.72,184.68,0.04166427]
[1747999594132,5.44947353,184.72,184.68,0.04166427]
[1747999595731,0.03567353,184.72,184.68,0.04166427]
[1747999596234,0.03567353,184.72,184.71,5.4139]
[1747999597238,0.03567353,184.72,184.68,0.04166427]
[1747999597937,0.03567353,184.72,184.68,102.92166427]
[1747999598134,0.03567353,184.72,184.68,0.04166427]
[1747999600835,0.03567353,184.72,184.7,5.4141]
[1747999601339,0.03567353,184.72,184.69,5.4144]
[1747999601537,0.03567353,184.72,184.68,0.04166427]
[1747999602742,0.03567353,184.72,184.69,5.4144]
[1747999603042,0.03567353,184.72,184.68,0.04166427]
[1747999603643,0.03567353,184.72,184.69,5.4142]
[1747999603838,5.44937353,184.72,184.69,5.4142]
[1747999604131,0.03567353,184.72,184.68,0.04166427]
[1747999605528,0.03567353,184.72,184.7,5.414]
[1747999605734,0.03567353,184.72,184.68,0.04166427]
[1747999606539,0.03567353,184.72,184.71,5.4139]
[1747999609238,0.03567353,184.72,184.68,0.04166427]
[1747999609839,0.03567353,184.72,184.71,5.4139]
[1747999611043,0.03567353,184.72,184.7,5.4141]
[1747999611544,0.03567353,184.72,184.68,0.04166427]
[1747999611744,0.03567353,184.72,184.69,5.4142]
[1747999612241,0.03567353,184.72,184.68,0.04166427]
[1747999612749,5.4141,184.71,184.68,5.45626427]
[1747999613147,0.03567353,184.72,184.68,0.04166427]
[1747999613347,5.4143,184.7,184.68,0.04166427]
[1747999613647,0.03567353,184.72,184.68,0.04166427]
[1747999614046,5.414,184.71,184.68,5.45616427]
[1747999614549,5.414,184.71,184.68,5.45626427]
[1747999615345,5.414,184.71,184.69,5.4144]
[1747999615738,5.44937353,184.72,184.69,5.4144]
[1747999616345,0.03567353,184.72,184.71,5.4139]
[1747999617441,0.03567353,184.72,184.7,5.4141]
[1747999618141,0.03567353,184.72,184.71,5.4139]
[1747999618941,0.03567353,184.72,184.68,102.92166427]
[1747999619539,0.03567353,184.72,184.68,0.04166427]
[1747999619949,5.4139,184.71,184.68,5.45636427]
[1747999620448,5.4142,184.7,184.68,0.04166427]
[1747999620651,0.03567353,184.72,184.68,0.04166427]
[1747999621746,5.4144,184.7,184.68,0.04166427]
[1747999622349,5.414,184.71,184.68,0.04166427]
[1747999622550,0.03567353,184.72,184.68,0.04166427]
[1747999623656,5.4145,184.69,184.68,0.04166427]
[1747999623856,0.03567353,184.72,184.68,0.04166427]
[1747999624650,0.03567353,184.72,184.71,5.4139]
[1747999625161,7.353e-05,184.72,184.71,5.4139]
[1747999626051,6.58133382,184.77,184.76,5.4124]
[1747999626460,6.58133382,184.82,184.79,5.4113]
[1747999626958,6.58133382,184.82,184.79,5.44650932]
[1747999627152,6.58133382,184.82,184.79,0.03520932]
[1747999627749,5.4112,184.8,184.79,0.03520932]
[1747999628855,5.4111,184.81,184.79,0.03520932]
[1747999629061,6.58133382,184.82,184.79,0.03520932]
[1747999629255,4.98550014,184.83,184.79,0.03520932]
[1747999630963,5.4112,184.81,184.79,0.03520932]
[1747999631166,4.98550014,184.83,184.79,0.03520932]
[1747999631557,5.4112,184.8,184.79,0.03520932]
[1747999631754,174.0,184.82,184.64,28.3942545]
[1747999631957,174.0,184.82,184.67,102.86]
[1747999632769,0.03981044,184.76,184.73,5.44880712]
[1747999633173,0.03981044,184.76,184.73,0.03570712]
[1747999633371,0.03981044,184.76,184.73,5.44890712]
[1747999633670,0.03981044,184.76,184.73,0.03570712]
[1747999633873,0.03981044,184.76,184.73,5.44900712]
[1747999634072,0.03981044,184.76,184.73,0.03570712]
[1747999635273,5.45221044,184.76,184.73,0.03570712]
[1747999635568,0.03981044,184.76,184.73,0.03570712]
[1747999636464,5.413,184.74,184.73,0.03570712]
[1747999639476,5.4128,184.75,184.73,0.03570712]
[1747999640279,5.413,184.74,184.73,0.03570712]
[1747999641166,179.34293915,184.75,184.65,5.4154]
[1747999641366,174.0,184.75,184.62,166.4]
[1747999641571,5.4149,184.68,184.62,166.4]
[1747999641768,166.4,184.73,184.62,166.4]
[1747999642174,0.03655304,184.69,184.66,0.0402819]
[1747999642584,5.415,184.67,184.66,0.0402819]
[1747999645180,5.4148,184.68,184.66,0.0402819]
[1747999645384,0.03655304,184.69,184.66,0.0402819]
[1747999647481,5.415,184.67,184.66,0.0402819]
[1747999647684,0.03655304,184.69,184.66,0.0402819]
[1747999648576,0.03655304,184.69,184.68,5.4147]
[1747999648782,0.03655304,184.69,184.66,2.0020819]
[1747999649372,0.03655304,184.69,184.66,0.0402819]
[1747999650690,0.03655304,184.69,184.68,5.4147]
[1747999654388,5.304e-05,184.69,184.68,5.4147]
[1747999654779,4.98550014,184.77,184.68,163.06]
[1747999655184,4.98550014,184.77,184.69,8.71422314]
[1747999655491,4.98550014,184.77,184.76,5.4124]
[1747999655682,0.03601874,184.78,184.75,0.03674872]
[1747999655986,4.98550014,184.81,184.75,0.03674872]
[1747999656190,4.98550014,184.81,184.75,3.84934872]
[1747999656988,4.98550014,184.81,184.8,5.4112]
[1747999657486,1.98790014,184.81,184.8,5.4112]
[1747999657882,6.58133382,184.84,184.83,5.4104]
[1747999658188,9.87200074,184.86,184.82,102.92168537]
[1747999658379,9.87200074,184.86,184.82,0.03716435]
[1747999659284,3.8964,184.92,184.82,0.03716435]
[1747999659486,163.02,184.89,184.82,5.44776435]
[1747999659793,163.02,184.89,184.82,0.03716435]
[1747999660592,5.4104,184.83,184.82,0.03716435]
[1747999663092,5.41,184.85,184.82,0.03716435]
[1747999663292,163.02,184.89,184.82,0.03716435]
[1747999664295,5.4098,184.86,184.82,0.03716435]
[1747999664705,5.4098,184.86,184.82,5.44776435]
[1747999665197,5.4098,184.85,184.82,0.03716435]
[1747999665388,163.02,184.89,184.82,0.03716435]
[1747999665991,163.02,184.89,184.83,5.4104]
[1747999666295,5.4095,184.86,184.83,5.4104]
[1747999666496,163.02,184.89,184.82,0.03716435]
[1747999666497,163.02,184.89,184.82,5.44776435]
[1747999666692,163.02,184.89,184.82,0.03716435]
[1747999666996,163.02,184.89,184.83,5.4103]
[1747999667200,163.02,184.89,184.82,0.03716435]
[1747999668089,5.4097,184.86,184.82,0.03716435]
[1747999668285,5.4097,184.86,184.82,5.44776435]
[1747999669293,5.4098,184.85,184.82,0.03716435]
[1747999670597,5.4098,184.85,184.82,5.44776435]
[1747999670802,5.4095,184.86,184.82,5.44776435]
[1747999670991,163.02,184.89,184.82,0.03716435]
[1747999671393,5.4091,184.88,184.84,5.41]
[1747999672002,163.02,184.89,184.83,5.4103]
[1747999672191,5.33726916,184.88,184.74,162.96]
[1747999672396,5.33726916,184.88,184.75,102.82]
[1747999672596,5.4109,184.82,184.78,5.4116]
[1747999672998,5.4113,184.8,184.76,5.4123]
[1747999673206,5.33726916,184.85,184.76,5.4123]
[1747999673399,0.03834622,184.8,184.76,5.4123]
[1747999673598,0.03834622,184.8,184.79,0.03880956]
[1747999673897,0.03834622,184.8,184.78,0.03842143]
[1747999674106,0.03834622,184.8,184.78,5.45002143]
[1747999674701,0.03834622,184.8,184.79,5.4115]
[1747999678017,4.622e-05,184.8,184.79,5.4115]
[1747999681514,163.02,184.89,184.86,5.4094]
[1747999681712,5.6753,184.9,184.86,5.4094]
[1747999681916,162.38,184.94,184.84,162.38]
[1747999682414,5.408,184.92,184.87,0.03753066]
[1747999682610,162.38,184.94,184.87,0.03753066]
[1747999683016,5.408,184.91,184.87,0.03753066]
[1747999683413,5.408,184.91,184.77,102.82]
[1747999683414,5.4093,184.87,184.77,102.82]
[1747999683714,5.4093,184.87,184.83,5.4101]
[1747999683905,5.4095,184.86,184.77,102.82]
[1747999684112,3.7876,184.9,184.77,102.82]
[1747999684312,3.7876,184.9,184.82,0.04122809]
[1747999684517,5.44919457,184.85,184.82,5.45162809]
[1747999685415,0.03929457,184.85,184.82,0.04122809]
[1747999686118,5.37656373,184.85,184.75,102.8]
[1747999686317,5.4115,184.8,184.76,5.4122]
[1747999686615,1.8001,184.84,184.75,102.8]
[1747999686915,5.4107,184.82,184.75,102.8]
[1747999687225,0.04058773,184.81,184.78,0.03461727]
[1747999687523,0.04058773,184.81,184.8,5.4112]
[1747999690518,8.773e-05,184.81,184.8,5.4112]
[1747999691819,8.773e-05,184.81,184.8,108.2112]
[1747999694025,8.773e-05,184.81,184.8,5.4112]
[1747999694319,8.773e-05,184.81,184.8,108.2112]
[1747999695121,8.773e-05,184.81,184.8,5.4112]
[1747999696222,8.773e-05,184.81,184.79,5.4114]
[1747999696822,8.773e-05,184.81,184.78,0.03461727]
[1747999697327,8.773e-05,184.81,184.8,5.4112]
[1747999698128,8.773e-05,184.81,184.8,108.2112]
[1747999698317,8.773e-05,184.81,184.79,5.4115]
[1747999699130,8.773e-05,184.81,184.78,5.44631727]
[1747999699820,8.773e-05,184.81,184.76,5.4123]
[1747999700124,8.773e-05,184.81,184.72,162.36]
[1747999700125,8.773e-05,184.81,184.7,162.36]
[1747999700329,8.773e-05,184.81,184.75,5.4126]
[1747999700330,5.4119,184.78,184.75,5.4126]
[1747999700629,1.9888,184.8,184.71,576.52235483]
[1747999700820,1.9888,184.8,184.74,0.03971218]
[1747999701021,0.03518616,184.79,184.74,0.03971218]
[1747999701329,0.03518616,184.79,184.77,5.4121]
[1747999702726,0.03518616,184.79,184.78,5.4118]
[1747999704025,0.03518616,184.79,184.74,0.03971218]
[1747999705126,1.93828616,184.79,184.74,0.03971218]
[1747999705525,5.4123,184.77,184.74,0.03971218]
[1747999705722,1.93828616,184.79,184.74,0.03971218]
[1747999705926,5.4123,184.77,184.74,0.03971218]
[1747999706226,1.93828616,184.79,184.74,0.03971218]
[1747999707721,5.4125,184.76,184.74,0.03971218]
[1747999707921,1.93828616,184.79,184.74,0.03971218]
[1747999708225,5.4127,184.75,184.74,0.03971218]
[1747999708427,1.93828616,184.79,184.74,0.03971218]
[1747999708826,5.4127,184.75,184.74,0.03971218]
[1747999709130,1.93828616,184.79,184.74,0.03971218]
[1747999709330,5.4126,184.76,184.74,0.03971218]
[1747999709732,1.93828616,184.79,184.74,0.03971218]
[1747999709922,5.4126,184.76,184.74,0.03971218]
[1747999710118,1.93828616,184.79,184.74,0.03971218]
[1747999710430,7.34998616,184.79,184.76,5.4124]
[1747999711134,1.93828616,184.79,184.74,0.03971218]
[1747999711934,0.03518616,184.79,184.74,0.03971218]
[1747999712133,0.03518616,184.79,184.78,5.4118]
[1747999715635,0.03518616,184.79,184.74,102.87971218]
[1747999716037,0.03518616,184.79,184.76,5.4122]
[1747999716237,0.03518616,184.79,184.74,102.87971218]
[1747999717036,0.03518616,184.79,184.78,5.4118]
[1747999720136,5.44678616,184.79,184.74,0.03971218]
[1747999720340,5.44678616,184.79,184.74,102.87971218]
[1747999720537,0.03518616,184.79,184.74,102.87971218]
[1747999720741,5.44678616,184.79,184.76,5.4123]
[1747999720943,0.03518616,184.79,184.74,0.03971218]
[1747999723645,0.03518616,184.79,184.76,5.4122]
[1747999723943,5.44678616,184.79,184.76,5.4122]
[1747999724243,0.03518616,184.79,184.75,5.4126]
[1747999724543,0.03518616,184.79,184.74,0.03971218]
[1747999725342,5.44698616,184.79,184.76,5.4124]
[1747999725943,5.4119,184.78,184.74,0.03971218]
[1747999726143,0.03518616,184.79,184.74,0.03971218]
[1747999726744,5.44688616,184.79,184.74,0.03971218]
[1747999727550,5.44688616,184.79,184.76,5.4123]
[1747999727845,5.4119,184.78,184.74,0.03971218]
[1747999728349,5.4119,184.78,184.76,5.4124]
[1747999728649,5.44678616,184.79,184.76,5.4124]
[1747999729247,5.4121,184.77,184.74,0.03971218]
[1747999729449,0.03518616,184.79,184.74,0.03971218]
[1747999729652,1.9267,184.78,184.74,0.03971218]
[1747999729946,5.4126,184.76,184.74,0.03971218]
[1747999730547,1.9267,184.78,184.74,0.03971218]
[1747999731248,5.44678616,184.79,184.74,0.03971218]
[1747999731549,0.03518616,184.79,184.76,5.4122]
[1747999731747,5.412,184.78,184.74,0.03971218]
[1747999732046,5.412,184.78,184.75,5.4126]
[1747999732649,5.4122,184.77,184.75,5.4126]
[1747999732949,0.03518616,184.79,184.74,0.03971218]
[1747999733457,5.4123,184.77,184.74,5.45261218]
[1747999733748,0.03518616,184.79,184.74,0.03971218]
[1747999735244,5.4127,184.75,184.74,0.03971218]
[1747999735641,5.4125,184.76,184.74,0.03971218]
[1747999735842,0.03518616,184.79,184.74,0.03971218]
[1747999736339,5.4127,184.75,184.74,0.03971218]
[1747999737344,5.4125,184.76,184.74,0.03971218]
[1747999737544,0.03518616,184.79,184.74,0.03971218]
[1747999738051,5.4124,184.77,184.74,0.03971218]
[1747999738347,0.03518616,184.79,184.74,5.45251218]
[1747999738552,0.03518616,184.79,184.74,0.03971218]
[1747999739860,5.44688616,184.79,184.76,5.4123]
[1747999740157,0.03518616,184.79,184.76,5.4123]
[1747999740345,0.03518616,184.79,184.78,5.4118]
[1747999740647,0.03518616,184.79,184.74,0.03971218]
[1747999741153,0.03518616,184.79,184.77,5.4121]
[1747999741356,0.03518616,184.79,184.74,0.03971218]
[1747999741552,0.03518616,184.79,184.78,5.4118]
[1747999741853,0.03518616,184.79,184.74,0.03971218]
[1747999742155,0.03518616,184.79,184.78,5.4118]
[1747999743048,8.616e-05,184.79,184.78,5.4118]
[1747999746062,8.616e-05,184.79,184.78,10.74906916]
[1747999746356,4.97414327,184.88,184.78,10.75726916]
[1747999746656,4.97414327,184.88,184.81,5.33726916]
[1747999746867,4.97414327,184.9,184.82,102.84]
[1747999747162,0.03520342,184.88,184.84,0.03956279]
[1747999748149,5.44420342,184.88,184.84,0.03956279]
[1747999748352,0.03520342,184.88,184.86,5.4095]
[1747999748652,0.03520342,184.88,184.84,0.03956279]
[1747999748955,0.03520342,184.88,184.85,5.4095]
[1747999749758,0.03520342,184.88,184.87,5.4092]
[1747999750453,0.03520342,184.88,184.86,5.4094]
[1747999750952,0.03520342,184.88,184.84,0.03956279]
[1747999751145,5.44430342,184.88,184.84,0.03956279]
[1747999751558,5.4092,184.87,184.84,5.44936279]
[1747999751859,0.03520342,184.88,184.84,0.03956279]
[1747999752264,5.4094,184.87,184.84,0.03956279]
[1747999752561,0.03520342,184.88,184.84,0.03956279]
[1747999752758,0.03520342,184.88,184.86,5.4092]
[1747999752954,0.03520342,184.88,184.84,0.03956279]
[1747999753360,0.03520342,184.88,184.85,5.4096]
[1747999753963,5.44430342,184.88,184.84,5.44956279]
[1747999754360,5.44430342,184.88,184.84,0.03956279]
[1747999754862,5.44430342,184.88,184.85,5.4096]
[1747999755560,5.4092,184.87,184.84,5.44956279]
[1747999755761,0.03520342,184.88,184.84,0.03956279]
[1747999755964,5.44420342,184.88,184.85,5.4096]
[1747999757765,0.03520342,184.88,184.86,5.4094]
[1747999758465,0.03520342,184.88,184.85,5.4097]
[1747999759668,0.03520342,184.88,184.86,5.4094]
[1747999761169,0.03520342,184.88,184.87,5.4092]
[1747999768772,0.03520342,184.88,184.84,0.03956279]
[1747999769163,5.4094,184.87,184.84,0.03956279]
[1747999769365,0.03520342,184.88,184.84,5.44946279]
[1747999769565,5.4094,184.87,184.84,0.03956279]
[1747999769775,0.03520342,184.88,184.84,0.03956279]
[1747999770164,5.4092,184.87,184.84,0.03956279]
[1747999771571,5.4092,184.87,184.84,5.44956279]
[1747999771873,0.03520342,184.88,184.84,0.03956279]
[1747999772270,5.4094,184.87,184.84,0.03956279]
[1747999772470,0.03520342,184.88,184.84,0.03956279]
[1747999772677,5.4094,184.87,184.84,0.03956279]
[1747999772876,5.4094,184.87,184.84,5.44956279]
[1747999774577,5.44410342,184.88,184.85,5.4095]
[1747999774973,0.03520342,184.88,184.84,0.03956279]
[1747999775276,0.03520342,184.88,184.86,5.4092]
[1747999775466,0.03520342,184.88,184.84,0.03956279]
[1747999776473,0.03520342,184.88,184.86,5.4093]
[1747999776673,0.03520342,184.88,184.84,0.03956279]
[1747999777881,0.03520342,184.88,184.86,5.4093]
[1747999778782,0.03520342,184.88,184.87,5.4092]
[1747999779884,0.03520342,184.88,184.86,5.4094]
[1747999781189,0.03520342,184.88,184.84,0.03956279]
[1747999781786,0.03520342,184.88,184.87,5.4092]
[1747999782686,0.03520342,184.88,184.86,5.4094]
[1747999783088,0.03520342,184.88,184.84,0.03956279]
[1747999783283,0.03520342,184.88,184.85,5.4096]
[1747999783485,0.03520342,184.88,184.84,0.03956279]
[1747999783788,0.03520342,184.88,184.87,5.4092]
[1747999784087,0.03520342,184.88,184.84,0.03956279]
[1747999784386,0.03520342,184.88,184.85,5.4097]
[1747999784587,0.03520342,184.88,184.84,0.03956279]
[1747999785499,0.03520342,184.88,184.86,5.4092]
[1747999785801,0.03520342,184.88,184.84,0.03956279]
[1747999786102,0.03520342,184.88,184.87,5.4092]
[1747999800394,0.03520342,184.88,184.86,5.4094]
[1747999800549,0.03520342,184.88,184.84,0.03956279]
[1747999801747,5.4092,184.87,184.84,5.44946279]
[1747999801951,0.03520342,184.88,184.84,0.03956279]
[1747999803146,0.03520342,184.88,184.87,5.4092]
[1747999803752,0.03520342,184.88,184.86,5.4094]